[Event "Hungarian Rapid-ch 2022"]
[Site "Ajka"]
[Date "2022.07.16"]
[Round "9.24"]
[White "Udvardi, Zalan"]
[Black "Giang, Tran Nam"]
[Result "0-1"]
[ECO "B23"]
[WhiteElo "2310"]
[BlackElo "2144"]
[Annotator "ChessBase"]
[PlyCount "105"]
[EventDate "2022.07.15"]
[EventType "swiss"]
[EventCountry "HUN"]
[SourceTitle "playchess.com"]
[Source "ChessBase"]
[SourceQuality "1"]
[TimeControl "900+10"]

1. e4 {[%emt 0:00:12]} c5 {[%emt 0:00:11]} 2. Nc3 {[%emt 0:00:01]} e6 {[%emt 0:00:01]} 3. Nge2 {[%emt 0:00:01]} a6 {[%emt 0:00:37]} 4. g3 {[%emt 0:00:02]} b5 {[%emt 0:00:05]} 5. Bg2 {[%emt 0:00:00]} Bb7 {[%emt 0:00:01]} 6. O-O {[%emt 0:00:06]} Nc6 {[%emt 0:00:14]} 7. d3 {[%emt 0:00:08]} Nf6 {[%emt 0:00:08]} 8. Bg5 {[%emt 0:00:45]} Be7 {[%emt 0:00:11]} 9. h3 {[%emt 0:00:52]} d6 {[%emt 0:00:17]} 10. Qd2 {[%emt 0:00:27]} Qc7 {[%emt 0:00:16]} 11. Nd1 {[%emt 0:00:31]} h6 {[%emt 0:00:35]} 12. Bf4 {[%emt 0:00:01]} O-O {[%emt 0:00:59]} 13. c3 {[%emt 0:00:39]} Rfd8 {[%emt 0:00:43]} 14. d4 {[%emt 0:00:15]} e5 {[%emt 0:01:15]} 15. Be3 {[%emt 0:00:08]} Na5 {[%emt 0:00:31]} 16. d5 {[%emt 0:00:06]} Nc4 {[%emt 0:00:08]} 17. Qc1 {[%emt 0:00:00]} Nxe3 {[%emt 0:00:04]} 18. Nxe3 {[%emt 0:00:03]} Bf8 {[%emt 0:00:08]} 19. f4 {[%emt 0:00:08]} exf4 {[%emt 0:00:09]} 20. gxf4 {[%emt 0:00:04]} Re8 {[%emt 0:00:11]} 21. Qc2 {[%emt 0:00:15]} g6 {[%emt 0:00:22]} 22. Rae1 {[%emt 0:01:40]} Bg7 {[%emt 0:00:20]} 23. Ng3 {[%emt 0:00:07]} Nd7 {[%emt 0:01:07]} 24. f5 {[%emt 0:04:38]} Ne5 {[%emt 0:01:20]} 25. f6 {[%emt 0:00:02]} Bf8 {[%emt 0:00:03]} 26. h4 {[%emt 0:01:37]} h5 {[%emt 0:00:21]} 27. Bh3 {[%emt 0:00:30]} Bc8 {[%emt 0:00:33]} 28. Bxc8 {[%emt 0:01:03]} Qxc8 {[%emt 0:00:06]} 29. Nef5 {[%emt 0:00:02]} Kh7 {[%emt 0:01:08]} 30. Qd2 {[%emt 0:00:42]} Ng4 {[%emt 0:02:24]} 31. Qg5 {[%emt 0:00:26]} Bh6 {[%emt 0:00:20]} 32. Nxh6 {[%emt 0:00:11]} Nxh6 {[%emt 0:00:01]} 33. Nf5 {[%emt 0:00:31]} Nxf5 {[%emt 0:01:44]} 34. exf5 {[%emt 0:00:02]} Rg8 {[%emt 0:01:09]} 35. Re7 {[%emt 0:00:35]} Qf8 {[%emt 0:00:32]} 36. Kh2 {[%emt 0:00:23]} Rc8 {[%emt 0:00:57]} 37. Rfe1 {[%emt 0:02:51]} c4 {[%emt 0:00:33]} 38. Rxf7+ {[%emt 0:00:46]} Qxf7 {[%emt 0:00:01]} 39. Re7 {[%emt 0:00:01]} Qxe7 {[%emt 0:00:16]} 40. fxe7 {[%emt 0:00:01]} gxf5 {[%emt 0:00:13]} 41. Qxh5+ {[%emt 0:00:01]} Kg7 {[%emt 0:00:01]} 42. Qxf5 {[%emt 0:00:12]} Rce8 {[%emt 0:00:03]} 43. Qe6 {[%emt 0:00:09]} Rh8 {[%emt 0:00:06]} 44. Qxd6 {[%emt 0:00:08]} Rxh4+ {[%emt 0:00:02]} 45. Kg3 {[%emt 0:00:03]} Re4 {[%emt 0:00:09]} 46. Qc6 {[%emt 0:00:41]} R8xe7 {[%emt 0:00:02]} 47. d6 {[%emt 0:00:08]} R7e6 {[%emt 0:00:26]} 48. Qb7+ {[%emt 0:00:13]} Kf6 {[%emt 0:00:09]} 49. d7 {[%emt 0:00:28]} Ke7 {[%emt 0:00:04]} 50. a4 {[%emt 0:00:15]} bxa4 {[%emt 0:00:08]} 51. Qc7 {[%emt 0:00:18]} Re3+ {[%emt 0:00:51]} 52. Kf4 {[%emt 0:00:01]} Rd3 {[%emt 0:00:05]} 53. d8=Q# {[%emt 0:00:02]} 0-1

[Event "Hungarian Rapid-ch 2022"]
[Site "Ajka"]
[Date "2022.07.16"]
[Round "9.25"]
[White "Kelemen, David"]
[Black "Nemeth, Zoltan"]
[Result "1/2-1/2"]
[ECO "B01"]
[WhiteElo "2136"]
[BlackElo "2242"]
[Annotator "ChessBase"]
[PlyCount "97"]
[EventDate "2022.07.15"]
[EventType "swiss"]
[EventCountry "HUN"]
[SourceTitle "playchess.com"]
[Source "ChessBase"]
[SourceQuality "1"]
[TimeControl "900+10"]

1. e4 {[%emt 0:00:20]} d5 {[%emt 0:00:20]} 2. exd5 {[%emt 0:00:10]} Qxd5 {[%emt 0:00:10]} 3. Nc3 {[%emt 0:00:10]} Qd8 {[%emt 0:00:10]} 4. d4 {[%emt 0:00:00]} Nf6 {[%emt 0:00:00]} 5. Nf3 {[%emt 0:00:15]} Bg4 {[%emt 0:00:05]} 6. Be2 {[%emt 0:00:03]} c6 {[%emt 0:00:01]} 7. h3 {[%emt 0:00:17]} Bxf3 {[%emt 0:00:02]} 8. Bxf3 {[%emt 0:00:01]} e6 {[%emt 0:00:00]} 9. Bg5 {[%emt 0:00:14]} Qa5 {[%emt 0:00:50]} 10. Bxf6 {[%emt 0:00:18]} gxf6 {[%emt 0:00:02]} 11. O-O {[%emt 0:00:10]} Bg7 {[%emt 0:00:26]} 12. Qe2 {[%emt 0:01:46]} O-O {[%emt 0:00:03]} 13. Rfd1 {[%emt 0:00:04]} f5 {[%emt 0:00:23]} 14. a3 {[%emt 0:00:50]} a6 {[%emt 0:02:08]} 15. b4 {[%emt 0:01:12]} Qd8 {[%emt 0:00:01]} 16. Na4 {[%emt 0:00:32]} Nd7 {[%emt 0:00:10]} 17. Ra2 {[%emt 0:00:51]} Qf6 {[%emt 0:01:06]} 18. c4 {[%emt 0:01:29]} Rfd8 {[%emt 0:00:28]} 19. Rad2 {[%emt 0:00:42]} Rab8 {[%emt 0:00:33]} 20. g3 {[%emt 0:01:50]} Rbc8 {[%emt 0:00:43]} 21. Bg2 {[%emt 0:01:18]} b5 {[%emt 0:00:50]} 22. Nc5 {[%emt 0:01:02]} Nxc5 {[%emt 0:00:18]} 23. dxc5 {[%emt 0:00:17]} Rxd2 {[%emt 0:00:15]} 24. Qxd2 {[%emt 0:00:22]} bxc4 {[%emt 0:00:05]} 25. Qd7 {[%emt 0:00:05]} Rf8 {[%emt 0:00:15]} 26. Bxc6 {[%emt 0:00:16]} Qb2 {[%emt 0:00:21]} 27. Qd2 {[%emt 0:02:40]} Qxa3 {[%emt 0:00:09]} 28. Rb1 {[%emt 0:00:24]} a5 {[%emt 0:03:50]} 29. Bd7 {[%emt 0:01:05]} c3 {[%emt 0:00:38]} 30. Qc2 {[%emt 0:00:10]} axb4 {[%emt 0:00:04]} 31. c6 {[%emt 0:00:01]} Qa5 {[%emt 0:00:02]} 32. Qb3 {[%emt 0:01:04]} Rb8 {[%emt 0:01:50]} 33. Qc4 {[%emt 0:00:01]} Be5 {[%emt 0:01:29]} 34. f4 {[%emt 0:00:06]} Bd6 {[%emt 0:00:31]} 35. Bxe6 {[%emt 0:00:22]} Qc5+ {[%emt 0:00:35]} 36. Kg2 {[%emt 0:00:08]} fxe6 {[%emt 0:00:51]} 37. Qxe6+ {[%emt 0:00:01]} Kg7 {[%emt 0:00:01]} 38. Qd7+ {[%emt 0:00:08]} Kf8 {[%emt 0:00:52]} 39. Rd1 {[%emt 0:00:14]} Re8 {[%emt 0:00:24]} 40. h4 {[%emt 0:00:18]} c2 {[%emt 0:00:08]} 41. Rxd6 {[%emt 0:00:03]} Re2+ {[%emt 0:00:14]} 42. Kh3 {[%emt 0:00:01]} Rh2+ {[%emt 0:00:09]} 43. Kxh2 {[%emt 0:00:05]} Qf2+ {[%emt 0:00:01]} 44. Kh3 {[%emt 0:00:01]} Qf1+ {[%emt 0:00:22]} 45. Kh2 {[%emt 0:00:01]} Qe2+ {[%emt 0:00:03]} 46. Kh3 {[%emt 0:00:06]} Qg4+ {[%emt 0:00:26]} 47. Kh2 {[%emt 0:00:01]} Qe2+ {[%emt 0:00:01]} 48. Kh3 {[%emt 0:00:01]} Qf1+ {[%emt 0:00:02]} 49. Kh2 {[%emt 0:00:01]} 1/2-1/2

[Event "Hungarian Rapid-ch 2022"]
[Site "Ajka"]
[Date "2022.07.16"]
[Round "9.26"]
[White "Mozes, Ervin"]
[Black "Szamoskozi, Gabor"]
[Result "0-1"]
[ECO "B13"]
[WhiteElo "2039"]
[BlackElo "2243"]
[Annotator "ChessBase"]
[PlyCount "90"]
[EventDate "2022.07.15"]
[EventType "swiss"]
[EventCountry "HUN"]
[SourceTitle "playchess.com"]
[Source "ChessBase"]
[SourceQuality "1"]
[TimeControl "900+10"]

1. e4 {[%emt 0:00:20]} c6 {[%emt 0:00:12]} 2. d4 {[%emt 0:00:00]} d5 {[%emt 0:00:02]} 3. exd5 {[%emt 0:00:02]} cxd5 {[%emt 0:00:02]} 4. Bd3 {[%emt 0:00:01]} Nc6 {[%emt 0:00:03]} 5. Ne2 {[%emt 0:00:11]} g6 {[%emt 0:00:34]} 6. O-O {[%emt 0:00:04]} Bg7 {[%emt 0:00:01]} 7. c3 {[%emt 0:00:22]} Nf6 {[%emt 0:00:10]} 8. h3 {[%emt 0:00:12]} Bf5 {[%emt 0:00:19]} 9. Ng3 {[%emt 0:00:59]} Bxd3 {[%emt 0:00:21]} 10. Qxd3 {[%emt 0:00:01]} O-O {[%emt 0:00:59]} 11. Bf4 {[%emt 0:00:51]} Qb6 {[%emt 0:00:24]} 12. b3 {[%emt 0:01:52]} Rac8 {[%emt 0:01:31]} 13. Nd2 {[%emt 0:00:09]} Rfd8 {[%emt 0:00:36]} 14. Rfc1 {[%emt 0:00:34]} Nd7 {[%emt 0:00:35]} 15. Be3 {[%emt 0:01:28]} Qc7 {[%emt 0:00:32]} 16. Nf3 {[%emt 0:01:07]} e5 {[%emt 0:00:44]} 17. dxe5 {[%emt 0:01:06]} Ndxe5 {[%emt 0:00:04]} 18. Nxe5 {[%emt 0:00:01]} Qxe5 {[%emt 0:01:18]} 19. Ne2 {[%emt 0:01:02]} a6 {[%emt 0:00:53]} 20. Nd4 {[%emt 0:00:25]} Nxd4 {[%emt 0:00:20]} 21. Bxd4 {[%emt 0:00:12]} Qe4 {[%emt 0:00:07]} 22. Qxe4 {[%emt 0:00:44]} dxe4 {[%emt 0:00:01]} 23. Bxg7 {[%emt 0:00:13]} Kxg7 {[%emt 0:00:02]} 24. Rc2 {[%emt 0:00:23]} Rd3 {[%emt 0:00:12]} 25. c4 {[%emt 0:00:17]} f5 {[%emt 0:00:07]} 26. Re1 {[%emt 0:00:33]} Kf6 {[%emt 0:00:07]} 27. Kf1 {[%emt 0:00:54]} Ke5 {[%emt 0:00:34]} 28. Ke2 {[%emt 0:01:17]} a5 {[%emt 0:03:03]} 29. f3 {[%emt 0:01:37]} Kd4 {[%emt 0:00:13]} 30. fxe4 {[%emt 0:00:06]} Re8 {[%emt 0:00:12]} 31. Kf2 {[%emt 0:00:25]} fxe4 {[%emt 0:00:06]} 32. c5 {[%emt 0:00:11]} e3+ {[%emt 0:01:05]} 33. Kg3 {[%emt 0:01:17]} Re6 {[%emt 0:03:33]} 34. Rc4+ {[%emt 0:00:17]} Kd5 {[%emt 0:00:02]} 35. Kf3 {[%emt 0:00:13]} e2+ {[%emt 0:00:28]} 36. Kf2 {[%emt 0:00:06]} Rd2 {[%emt 0:00:13]} 37. Ra4 {[%emt 0:00:13]} Kxc5 {[%emt 0:01:02]} 38. Rxa5+ {[%emt 0:00:07]} Kd4 {[%emt 0:00:05]} 39. Ra8 {[%emt 0:00:11]} Rf6+ {[%emt 0:00:07]} 40. Kg3 {[%emt 0:00:05]} Re6 {[%emt 0:00:23]} 41. Rd8+ {[%emt 0:01:15]} Ke3 {[%emt 0:00:05]} 42. Rb8 {[%emt 0:00:33]} Rd1 {[%emt 0:00:06]} 43. Rxe2+ {[%emt 0:00:03]} Kxe2 {[%emt 0:00:02]} 44. Rxb7 {[%emt 0:00:00]} h5 {[%emt 0:00:06]} 45. Rb5 {[%emt 0:00:03]} Rd3+ {[%emt 0:00:08]} 0-1

[Event "Hungarian Rapid-ch 2022"]
[Site "Ajka"]
[Date "2022.07.16"]
[Round "9.27"]
[White "Gyenes, Mate"]
[Black "Farkas, Lajos Dr."]
[Result "1-0"]
[ECO "B13"]
[WhiteElo "2048"]
[BlackElo "2058"]
[Annotator "ChessBase"]
[PlyCount "119"]
[EventDate "2022.07.15"]
[EventType "swiss"]
[EventCountry "HUN"]
[SourceTitle "playchess.com"]
[Source "ChessBase"]
[SourceQuality "1"]
[TimeControl "900+10"]

1. e4 {[%emt 0:00:13]} c6 {[%emt 0:00:12]} 2. d4 {[%emt 0:00:01]} d5 {[%emt 0:00:02]} 3. exd5 {[%emt 0:00:01]} cxd5 {[%emt 0:00:02]} 4. c3 {[%emt 0:00:03]} Qc7 {[%emt 0:00:10]} 5. Bd3 {[%emt 0:00:03]} Nc6 {[%emt 0:00:01]} 6. Nf3 {[%emt 0:00:06]} Bg4 {[%emt 0:00:04]} 7. h3 {[%emt 0:00:24]} Bxf3 {[%emt 0:01:47]} 8. Qxf3 {[%emt 0:00:02]} e6 {[%emt 0:01:42]} 9. O-O {[%emt 0:00:05]} Nf6 {[%emt 0:00:08]} 10. Bg5 {[%emt 0:00:23]} Be7 {[%emt 0:00:03]} 11. Nd2 {[%emt 0:00:10]} O-O {[%emt 0:00:25]} 12. Rae1 {[%emt 0:01:28]} a5 {[%emt 0:00:51]} 13. a4 {[%emt 0:00:14]} Qb6 {[%emt 0:01:29]} 14. Rb1 {[%emt 0:00:46]} h6 {[%emt 0:00:19]} 15. Bf4 {[%emt 0:01:06]} Qd8 {[%emt 0:00:20]} 16. Bc2 {[%emt 0:00:25]} Bd6 {[%emt 0:00:24]} 17. Be3 {[%emt 0:01:01]} Re8 {[%emt 0:00:51]} 18. Qe2 {[%emt 0:00:09]} Ne7 {[%emt 0:00:41]} 19. Qb5 {[%emt 0:00:16]} Qd7 {[%emt 0:00:45]} 20. Qe2 {[%emt 0:00:15]} Nf5 {[%emt 0:00:39]} 21. Bd3 {[%emt 0:00:34]} Re7 {[%emt 0:00:32]} 22. Bb5 {[%emt 0:00:19]} Qc7 {[%emt 0:00:14]} 23. Nf3 {[%emt 0:00:15]} Nxe3 {[%emt 0:00:43]} 24. Qxe3 {[%emt 0:00:11]} Bf4 {[%emt 0:00:24]} 25. Qe2 {[%emt 0:00:11]} Ne4 {[%emt 0:00:13]} 26. Bd3 {[%emt 0:00:27]} f5 {[%emt 0:00:07]} 27. Rfe1 {[%emt 0:00:27]} Rf8 {[%emt 0:00:23]} 28. Nh4 {[%emt 0:00:32]} Kh7 {[%emt 0:00:37]} 29. Qh5 {[%emt 0:00:59]} Rf6 {[%emt 0:00:22]} 30. Qe2 {[%emt 0:00:31]} Bh2+ {[%emt 0:00:41]} 31. Kh1 {[%emt 0:01:38]} Nxf2+ {[%emt 0:00:51]} 32. Qxf2 {[%emt 0:00:11]} Bg3 {[%emt 0:00:02]} 33. Qe2 {[%emt 0:03:12]} Bxh4 {[%emt 0:00:05]} 34. Rf1 {[%emt 0:00:01]} Bg3 {[%emt 0:00:59]} 35. Rf3 {[%emt 0:00:24]} g6 {[%emt 0:00:43]} 36. Qe3 {[%emt 0:00:08]} Bd6 {[%emt 0:00:06]} 37. g4 {[%emt 0:00:16]} f4 {[%emt 0:00:31]} 38. Qg1 {[%emt 0:00:10]} e5 {[%emt 0:01:15]} 39. g5 {[%emt 0:00:28]} hxg5 {[%emt 0:00:05]} 40. Qxg5 {[%emt 0:00:05]} Ree6 {[%emt 0:00:16]} 41. dxe5 {[%emt 0:00:11]} Bxe5 {[%emt 0:00:01]} 42. Rg1 {[%emt 0:00:10]} Qg7 {[%emt 0:00:23]} 43. Rg4 {[%emt 0:00:07]} Rf7 {[%emt 0:01:05]} 44. h4 {[%emt 0:00:23]} Qf6 {[%emt 0:00:39]} 45. h5 {[%emt 0:00:45]} Qxg5 46. Rxg5 {[%emt 0:00:12]} Rff6 {[%emt 0:00:18]} 47. hxg6+ {[%emt 0:00:04]} Kg7 {[%emt 0:00:05]} 48. Rh5 {[%emt 0:00:09]} Bd6 {[%emt 0:00:12]} 49. Rh7+ {[%emt 0:01:08]} Kg8 {[%emt 0:00:00]} 50. Rfh3 {[%emt 0:00:17]} Re1+ {[%emt 0:00:07]} 51. Kg2 {[%emt 0:00:01]} f3+ {[%emt 0:00:01]} 52. Kf2 {[%emt 0:00:46]} Rfe6 {[%emt 0:00:15]} 53. Rh8+ {[%emt 0:00:02]} Kg7 {[%emt 0:00:01]} 54. R3h7+ {[%emt 0:00:01]} Kf6 {[%emt 0:00:01]} 55. Rf7+ {[%emt 0:00:23]} Kg5 {[%emt 0:00:28]} 56. g7 {[%emt 0:00:20]} R1e2+ {[%emt 0:00:11]} 57. Bxe2 {[%emt 0:00:07]} fxe2 {[%emt 0:00:07]} 58. g8=Q+ Rg6 59. Kxe2 {[%emt 0:00:09]} Rxg8 {[%emt 0:00:01]} 60. Rxg8+ 1-0

[Event "Hungarian Rapid-ch 2022"]
[Site "Ajka"]
[Date "2022.07.16"]
[Round "9.28"]
[White "Gaal, Zsoka"]
[Black "Meszaros, Tamas"]
[Result "1-0"]
[ECO "A06"]
[WhiteElo "2313"]
[BlackElo "2368"]
[Annotator "ChessBase"]
[PlyCount "93"]
[EventDate "2022.07.15"]
[EventType "swiss"]
[EventCountry "HUN"]
[SourceTitle "playchess.com"]
[Source "ChessBase"]
[SourceQuality "1"]
[TimeControl "900+10"]

1. Nf3 {[%emt 0:00:17]} d5 {[%emt 0:00:11]} 2. g3 {[%emt 0:00:03]} Nf6 {[%emt 0:00:09]} 3. Bg2 {[%emt 0:00:02]} c6 {[%emt 0:00:02]} 4. O-O {[%emt 0:00:15]} Bf5 {[%emt 0:00:03]} 5. c4 {[%emt 0:00:03]} e6 {[%emt 0:02:15]} 6. Qb3 {[%emt 0:00:04]} Qb6 {[%emt 0:00:19]} 7. d3 {[%emt 0:00:04]} Nbd7 {[%emt 0:00:31]} 8. cxd5 {[%emt 0:00:17]} Qxb3 {[%emt 0:00:53]} 9. axb3 {[%emt 0:00:02]} exd5 {[%emt 0:00:01]} 10. Bd2 {[%emt 0:00:19]} Be7 {[%emt 0:01:04]} 11. b4 {[%emt 0:00:35]} O-O {[%emt 0:00:13]} 12. Nd4 {[%emt 0:00:53]} Bg6 {[%emt 0:00:04]} 13. b5 {[%emt 0:01:05]} c5 {[%emt 0:00:49]} 14. Nb3 {[%emt 0:00:02]} a6 {[%emt 0:00:31]} 15. Nc3 {[%emt 0:01:07]} Nb6 {[%emt 0:04:20]} 16. bxa6 {[%emt 0:01:22]} Rxa6 {[%emt 0:00:01]} 17. Rxa6 {[%emt 0:00:04]} bxa6 {[%emt 0:00:02]} 18. Ra1 {[%emt 0:00:11]} d4 {[%emt 0:01:33]} 19. Nb1 {[%emt 0:02:56]} c4 {[%emt 0:02:14]} 20. Rxa6 {[%emt 0:01:33]} Nfd7 {[%emt 0:00:03]} 21. Nxd4 {[%emt 0:02:09]} cxd3 {[%emt 0:00:03]} 22. exd3 {[%emt 0:00:09]} Bxd3 {[%emt 0:00:10]} 23. Ra1 {[%emt 0:00:01]} Bf6 {[%emt 0:01:01]} 24. Bc3 {[%emt 0:00:22]} Nc4 {[%emt 0:02:21]} 25. Na3 {[%emt 0:00:33]} Ndb6 {[%emt 0:00:14]} 26. Nxc4 {[%emt 0:00:33]} Nxc4 {[%emt 0:00:01]} 27. Rd1 {[%emt 0:00:02]} Bg6 {[%emt 0:00:04]} 28. Ra1 {[%emt 0:01:11]} h5 {[%emt 0:00:20]} 29. Ra8 {[%emt 0:00:21]} Rxa8 {[%emt 0:00:09]} 30. Bxa8 {[%emt 0:00:02]} Kf8 {[%emt 0:00:09]} 31. b3 {[%emt 0:00:37]} Nd6 {[%emt 0:00:15]} 32. Bb4 {[%emt 0:00:21]} Bxd4 {[%emt 0:00:04]} 33. Bxd6+ {[%emt 0:00:01]} Ke8 {[%emt 0:00:01]} 34. Bc6+ {[%emt 0:00:05]} Kd8 {[%emt 0:00:01]} 35. b4 {[%emt 0:00:04]} Bf5 {[%emt 0:00:24]} 36. Bc5 {[%emt 0:00:42]} Bc3 {[%emt 0:00:20]} 37. b5 {[%emt 0:00:24]} Kc7 {[%emt 0:00:12]} 38. Bd5 {[%emt 0:00:12]} f6 {[%emt 0:00:09]} 39. b6+ {[%emt 0:00:13]} Kd7 {[%emt 0:00:01]} 40. b7 {[%emt 0:00:48]} Be5 {[%emt 0:00:01]} 41. Ba7 {[%emt 0:00:01]} g5 {[%emt 0:00:01]} 42. b8=Q {[%emt 0:00:16]} Bxb8 {[%emt 0:00:02]} 43. Bxb8 {[%emt 0:00:01]} Bg6 {[%emt 0:00:03]} 44. Kg2 {[%emt 0:00:25]} Bc2 {[%emt 0:00:03]} 45. Kf3 {[%emt 0:00:06]} Bd1+ {[%emt 0:00:02]} 46. Ke3 {[%emt 0:00:01]} Ke7 {[%emt 0:00:09]} 47. Bf3 {[%emt 0:00:07]} 1-0

[Event "Hungarian Rapid-ch 2022"]
[Site "Ajka"]
[Date "2022.07.16"]
[Round "9.29"]
[White "Balint, Vilmos"]
[Black "Fabian Nagy, Sandor"]
[Result "1-0"]
[ECO "B42"]
[WhiteElo "2283"]
[BlackElo "1955"]
[Annotator "ChessBase"]
[PlyCount "63"]
[EventDate "2022.07.15"]
[EventType "swiss"]
[EventCountry "HUN"]
[SourceTitle "playchess.com"]
[Source "ChessBase"]
[SourceQuality "1"]
[TimeControl "900+10"]

1. e4 {[%emt 0:00:50]} c5 {[%emt 0:00:15]} 2. Nf3 {[%emt 0:00:02]} e6 {[%emt 0:00:02]} 3. d4 {[%emt 0:00:14]} cxd4 {[%emt 0:00:03]} 4. Nxd4 {[%emt 0:00:02]} a6 {[%emt 0:00:02]} 5. Bd3 {[%emt 0:00:09]} Qc7 {[%emt 0:00:06]} 6. O-O {[%emt 0:00:09]} Nf6 {[%emt 0:00:08]} 7. Re1 {[%emt 0:00:17]} d6 {[%emt 0:00:23]} 8. c4 {[%emt 0:00:39]} Be7 {[%emt 0:00:15]} 9. Nc3 {[%emt 0:00:03]} O-O {[%emt 0:00:21]} 10. Be3 {[%emt 0:00:08]} Nc6 {[%emt 0:00:46]} 11. Rc1 {[%emt 0:00:19]} Bd7 {[%emt 0:01:22]} 12. Nd5 {[%emt 0:00:35]} exd5 {[%emt 0:00:52]} 13. cxd5 {[%emt 0:00:02]} Rfc8 {[%emt 0:00:47]} 14. dxc6 {[%emt 0:00:15]} bxc6 {[%emt 0:00:19]} 15. Nf5 {[%emt 0:00:49]} Bxf5 {[%emt 0:00:45]} 16. exf5 {[%emt 0:00:01]} d5 {[%emt 0:00:21]} 17. Bd4 {[%emt 0:00:10]} c5 {[%emt 0:00:48]} 18. Be5 {[%emt 0:00:02]} Qd7 {[%emt 0:00:34]} 19. Qf3 {[%emt 0:00:10]} c4 {[%emt 0:00:49]} 20. Bb1 {[%emt 0:00:41]} Ra7 {[%emt 0:01:03]} 21. g4 {[%emt 0:00:10]} h6 {[%emt 0:00:39]} 22. h4 {[%emt 0:00:02]} d4 {[%emt 0:02:18]} 23. g5 {[%emt 0:00:15]} hxg5 {[%emt 0:00:38]} 24. hxg5 {[%emt 0:00:01]} Nd5 {[%emt 0:00:08]} 25. f6 {[%emt 0:01:03]} d3 {[%emt 0:00:44]} 26. fxg7 {[%emt 0:02:57]} Bxg5 {[%emt 0:01:08]} 27. Qh5 {[%emt 0:00:29]} f6 {[%emt 0:00:13]} 28. Rxc4 {[%emt 0:00:53]} Re8 {[%emt 0:00:44]} 29. Bxd3 {[%emt 0:00:40]} Qxg7 {[%emt 0:01:38]} 30. Qxe8+ {[%emt 0:00:08]} Qf8 {[%emt 0:00:07]} 31. Qxf8+ {[%emt 0:01:03]} Kxf8 {[%emt 0:00:01]} 32. Bd6+ {[%emt 0:00:05]} 1-0

[Event "Hungarian Rapid-ch 2022"]
[Site "Ajka"]
[Date "2022.07.16"]
[Round "9.30"]
[White "Pap, Peter"]
[Black "Benedek, Istvan"]
[Result "1-0"]
[ECO "B28"]
[WhiteElo "2159"]
[BlackElo "2059"]
[Annotator "ChessBase"]
[PlyCount "61"]
[EventDate "2022.07.15"]
[EventType "swiss"]
[EventCountry "HUN"]
[SourceTitle "playchess.com"]
[Source "ChessBase"]
[SourceQuality "1"]
[TimeControl "900+10"]

1. e4 {[%emt 0:00:22]} c5 {[%emt 0:00:12]} 2. Nf3 {[%emt 0:00:04]} a6 {[%emt 0:00:20]} 3. c4 {[%emt 0:00:34]} Nc6 {[%emt 0:00:04]} 4. d4 {[%emt 0:00:10]} cxd4 {[%emt 0:00:22]} 5. Nxd4 {[%emt 0:00:02]} e5 {[%emt 0:00:30]} 6. Nc2 {[%emt 0:00:24]} Bc5 {[%emt 0:00:45]} 7. Be3 {[%emt 0:00:22]} Qb6 {[%emt 0:00:52]} 8. Nc3 {[%emt 0:00:08]} Bxe3 {[%emt 0:00:13]} 9. Nxe3 {[%emt 0:00:01]} Nf6 {[%emt 0:03:15]} 10. Ned5 {[%emt 0:03:16]} Qa5 {[%emt 0:00:24]} 11. Nxf6+ {[%emt 0:00:34]} gxf6 {[%emt 0:00:01]} 12. Qd6 {[%emt 0:00:04]} Qb4 {[%emt 0:02:13]} 13. Qxf6 {[%emt 0:00:19]} Rg8 {[%emt 0:00:53]} 14. O-O-O {[%emt 0:00:05]} b5 {[%emt 0:01:05]} 15. Nd5 {[%emt 0:04:15]} Qa5 {[%emt 0:00:07]} 16. Kb1 {[%emt 0:00:48]} Rb8 {[%emt 0:02:28]} 17. Be2 {[%emt 0:02:59]} Kf8 {[%emt 0:01:01]} 18. Qh6+ {[%emt 0:01:03]} Rg7 {[%emt 0:00:03]} 19. Qd6+ {[%emt 0:00:04]} Ke8 {[%emt 0:00:34]} 20. Nf6+ {[%emt 0:00:09]} Kd8 {[%emt 0:00:01]} 21. Qxc6 {[%emt 0:00:10]} Rb7 {[%emt 0:00:17]} 22. Qd6 {[%emt 0:00:28]} Rg6 {[%emt 0:00:21]} 23. Qxe5 {[%emt 0:00:19]} Rb6 {[%emt 0:00:34]} 24. Nd5 {[%emt 0:00:07]} Rbe6 {[%emt 0:00:05]} 25. Qh8+ {[%emt 0:00:19]} Re8 {[%emt 0:00:02]} 26. Qxh7 {[%emt 0:00:02]} bxc4 {[%emt 0:00:31]} 27. Qxf7 {[%emt 0:00:16]} Rge6 {[%emt 0:00:13]} 28. Bxc4 {[%emt 0:00:23]} Bb7 {[%emt 0:00:01]} 29. Nb6 {[%emt 0:00:36]} Bxe4+ {[%emt 0:00:23]} 30. Ka1 {[%emt 0:00:01]} R6e7 {[%emt 0:00:10]} 31. Rxd7+ 1-0

[Event "Hungarian Rapid-ch 2022"]
[Site "Ajka"]
[Date "2022.07.17"]
[Round "10.1"]
[White "Aczel, Gergely"]
[Black "Balog, Imre"]
[Result "1/2-1/2"]
[ECO "E46"]
[WhiteElo "2499"]
[BlackElo "2594"]
[Annotator "ChessBase"]
[PlyCount "23"]
[EventDate "2022.07.15"]
[EventType "swiss"]
[EventCountry "HUN"]
[SourceTitle "playchess.com"]
[Source "ChessBase"]
[SourceQuality "1"]
[TimeControl "900+10"]

1. d4 {[%emt 0:00:12]} Nf6 {[%emt 0:00:14]} 2. c4 {[%emt 0:00:02]} e6 {[%emt 0:00:02]} 3. Nc3 {[%emt 0:00:01]} Bb4 {[%emt 0:00:08]} 4. e3 {[%emt 0:00:01]} O-O {[%emt 0:00:19]} 5. Bd2 {[%emt 0:00:01]} d5 {[%emt 0:00:19]} 6. Nf3 {[%emt 0:00:02]} Re8 {[%emt 0:00:12]} 7. Bd3 {[%emt 0:00:14]} a6 {[%emt 0:01:37]} 8. O-O {[%emt 0:00:04]} dxc4 {[%emt 0:00:07]} 9. Bxc4 {[%emt 0:00:02]} b5 {[%emt 0:00:41]} 10. Be2 {[%emt 0:00:17]} Bb7 {[%emt 0:00:06]} 11. a4 {[%emt 0:00:05]} c6 {[%emt 0:00:22]} 12. Ne4 {[%emt 0:01:14]} 1/2-1/2